bitfinex/quotes_ETHUSD_20241204
["timestamp","ask_amount","ask_price","bid_price","bid_amount"]
[1733284222799,0.25452692,3677.1,3676.6,2.71989]
[1733284223002,0.03399563,3677.2,3676.6,2.71989]
[1733284223210,0.25452856,3677.1,3676.6,2.71989]
[1733284223419,0.7606,3677.3,3676.6,2.71989]
[1733284223420,0.7606,3677.3,3676.6,0.271989]
[1733284223620,0.25452662,3677.2,3676.9,2.71963]
[1733284223820,0.7534,3677.6,3676.4,3.16095]
[1733284224030,0.66174906,3677.5,3676.8,0.2719]
[1733284224235,0.25451887,3677.4,3676.8,0.2719]
[1733284224552,0.25451887,3677.3,3676.8,0.2719]
[1733284224704,0.7534,3677.6,3677.1,2.71952]
[1733284224904,0.4072278,3677.5,3677.1,2.71952]
[1733284225115,0.7534,3677.6,3677.1,2.71952]
[1733284225116,0.25451737,3677.4,3677.1,2.71952]
[1733284225407,0.7534,3677.6,3677.1,2.71952]
[1733284225754,0.25450253,3677.5,3677.1,2.71952]
[1733284225928,0.25450253,3677.4,3677.1,2.71952]
[1733284226127,0.7534,3677.6,3677.1,2.71952]
[1733284226311,0.25451396,3677.5,3677.1,2.71952]
[1733284226514,0.25451396,3677.4,3677.0,0.169]
[1733284226733,0.7534,3677.6,3677.2,2.71943]
[1733284226933,0.25451,3677.5,3677.2,2.71943]
[1733284227132,0.25451,3677.4,3677.2,2.71943]
[1733284227442,0.25452723,3677.3,3677.2,2.71943]
[1733284228037,0.7534,3677.6,3677.2,2.71943]
[1733284228240,0.25452738,3677.5,3677.2,2.71943]
[1733284228540,0.25455309,3677.4,3677.2,2.71943]
[1733284228738,0.2545529,3677.3,3677.2,2.71943]
[1733284228970,0.7534,3677.6,3677.2,2.71943]
[1733284229174,0.25455373,3677.5,3677.0,0.169]
[1733284229342,0.25455373,3677.4,3677.3,2.71938]
[1733284229542,0.7713,3677.9,3677.3,0.288838]
[1733284229754,0.66205543,3677.8,3677.5,2.71917]
[1733284230065,0.2546367,3677.7,3677.5,2.71917]
[1733284230269,0.2546367,3677.6,3677.3,0.288838]
[1733284230445,0.2546367,3677.5,3677.3,2.71936]
[1733284230640,0.7713,3677.9,3677.3,2.71936]
[1733284230957,0.66202947,3677.8,3677.4,2.7193]
[1733284231160,0.25462672,3677.7,3677.4,2.7193]
[1733284231341,0.7713,3677.9,3677.0,0.169]
[1733284231342,0.25462672,3677.6,3677.5,2.99116]
[1733284231663,0.792,3678.2,3677.8,2.71897]
[1733284231873,0.792,3678.2,3677.9,2.71892]
[1733284232174,0.66194274,3678.1,3677.9,2.71892]
[1733284232372,0.25459336,3678.0,3677.9,2.71892]
[1733284233053,0.8221,3678.4,3677.6,2.71916]
[1733284233241,0.25449783,3678.3,3678.1,2.71878]
[1733284233447,0.25449783,3678.2,3678.1,2.71878]
[1733284234648,0.7679,3678.6,3678.1,2.71878]
[1733284234843,0.25443743,3678.5,3678.1,2.71878]
[1733284235175,0.25443743,3678.4,3678.1,2.71878]
[1733284235369,0.7679,3678.6,3678.0,0.169]
[1733284235370,0.25443743,3678.3,3678.0,0.169]
[1733284235586,0.25438192,3678.3,3677.8,2.99085]
[1733284235768,0.44100117,3678.5,3677.8,2.99085]
[1733284235956,0.25438628,3678.4,3677.9,2.71892]
[1733284236268,0.25438628,3678.3,3677.9,2.71892]
[1733284236492,0.03398304,3678.5,3677.9,2.71892]
[1733284236701,0.25436297,3678.4,3677.9,2.71892]
[1733284236863,0.25436297,3678.3,3677.9,2.71892]
[1733284237200,0.03398304,3678.5,3677.9,2.71892]
[1733284237361,0.25432577,3678.4,3677.9,2.71892]
[1733284237696,0.25432577,3678.3,3677.9,2.71892]
[1733284237886,0.03398304,3678.5,3677.9,2.71892]
[1733284238195,0.25433,3678.4,3677.9,2.71892]
[1733284238361,0.25433,3678.3,3677.8,0.2719]
[1733284238559,0.25429509,3678.2,3677.6,0.2719]
[1733284238792,0.25430609,3678.1,3677.6,0.2719]
[1733284239007,0.8103,3678.4,3677.6,0.2719]
[1733284239216,0.2882817,3678.3,3677.3,2.71938]
[1733284239374,0.7647,3678.2,3677.4,2.99121]
[1733284239580,0.25429435,3678.1,3677.4,2.99121]
[1733284239777,0.7647,3678.2,3677.4,2.99121]
[1733284240080,0.25429479,3678.1,3677.4,2.99121]
[1733284240417,0.7647,3678.2,3677.4,2.99121]
[1733284240577,0.25428168,3678.1,3677.4,2.99121]
[1733284240978,0.7647,3678.2,3677.4,2.99121]
[1733284241578,0.7647,3678.0,3676.9,0.169]
[1733284241782,0.7647,3677.8,3676.7,2.71979]
[1733284241990,0.7647,3677.8,3676.2,0.169]
[1733284241991,0.7647,3677.6,3676.2,0.169]
[1733284242220,0.2882881,3677.5,3676.5,2.71992]
[1733284242427,0.25429331,3677.4,3676.6,2.71988]
[1733284242583,0.7647,3677.6,3676.7,0.2719]
[1733284242779,0.7647,3677.4,3676.3,0.2719]
[1733284243085,0.40689777,3677.7,3676.4,2.99193]
[1733284243086,0.7647,3677.2,3676.4,2.99193]
[1733284243279,0.7647,3677.2,3676.4,0.2719]
[1733284243522,0.7647,3677.2,3676.5,2.99186]
[1733284244121,0.7647,3677.2,3676.5,0.2719]
[1733284244422,0.7647,3677.2,3676.6,2.7199]
[1733284244924,0.7647,3677.2,3676.5,0.2719]
[1733284245641,0.8228,3677.4,3675.9,0.169]
[1733284245830,0.8306,3677.2,3676.1,2.72022]
[1733284246015,0.25434171,3677.1,3676.1,2.72022]
[1733284246211,0.8306,3676.9,3676.1,2.72022]
[1733284246758,0.8306,3676.9,3676.2,0.2719]
[1733284246941,0.8306,3676.9,3676.2,2.99207]
[1733284247631,0.8306,3676.9,3676.2,0.2719]
[1733284248225,0.8306,3676.9,3676.2,2.99207]
[1733284248427,0.8306,3676.9,3676.3,2.72012]
[1733284248641,0.8306,3676.9,3676.1,2.72027]
[1733284249218,0.03400007,3676.8,3676.1,2.72027]
[1733284250534,0.8306,3676.9,3676.1,2.72027]
[1733284250720,0.8306,3676.9,3676.2,2.72019]
[1733284251239,0.8306,3676.9,3676.2,0.441019]
[1733284251444,0.8306,3676.9,3676.2,0.169]
[1733284251662,0.8306,3676.9,3676.4,2.72005]
[1733284259873,0.0339982,3676.8,3676.4,2.72005]
[1733284260291,0.8306,3676.9,3676.4,2.72005]
[1733284260497,0.8306,3676.9,3676.2,2.72019]
[1733284260875,0.8306,3676.9,3676.3,2.72012]
[1733284261788,0.8306,3676.9,3676.0,0.2719]
[1733284262100,0.8306,3676.9,3676.4,2.72004]
[1733284263711,0.8306,3676.9,3676.4,2.72003]
[1733284264289,0.8306,3676.9,3676.2,2.72016]
[1733284264495,0.03399789,3676.8,3676.2,2.72016]
[1733284264890,0.7953,3676.7,3676.0,2.99223]
[1733284265317,0.7953,3676.5,3675.8,2.72048]
[1733284265518,0.03400297,3676.4,3675.8,2.72048]
[1733284265679,0.8158,3676.3,3675.4,2.72075]
[1733284265882,1.1727713,3676.3,3675.6,2.72064]
[1733284266646,0.8158,3676.3,3675.4,3.89359814]
[1733284266852,0.8158,3676.3,3675.4,4.16549814]
[1733284267208,0.8158,3676.3,3675.5,2.72071]
[1733284267507,0.8158,3676.3,3675.6,2.72063]
[1733284267711,0.8158,3676.3,3675.7,2.72052]
[1733284268110,0.03400306,3676.2,3675.5,2.72071]
[1733284268307,0.7988,3676.1,3675.3,0.2719]
[1733284268539,0.99596081,3676.1,3675.3,0.2719]
[1733284272233,0.7988,3676.1,3675.3,0.2719]
[1733284272412,0.7988,3676.1,3675.1,0.2719]
[1733284272612,0.7988,3676.1,3675.5,2.7207]
[1733284272836,0.7988,3676.1,3675.6,2.72062]
[1733284274047,0.7988,3676.1,3675.4,2.72078]
[1733284274048,0.0340061,3676.0,3675.4,2.72078]
[1733284274641,0.7569,3676.3,3675.3,0.2719]
[1733284274977,1.17280814,3676.4,3675.3,0.2719]
[1733284274978,0.7569,3676.1,3675.3,2.99274]
[1733284275474,0.7569,3676.1,3675.4,2.72078]
[1733284276843,0.7569,3676.1,3675.6,2.72062]
[1733284278282,0.7569,3676.1,3675.4,2.72079]
[1733284278783,0.03400684,3676.4,3675.4,2.72079]
[1733284278784,0.8142,3675.9,3675.4,2.72079]
[1733284279675,0.8142,3675.9,3675.0,0.02941529]
[1733284279974,0.8142,3675.9,3675.1,0.59105153]
[1733284280542,0.8142,3675.9,3675.3,2.72083]
[1733284281152,0.8142,3675.9,3675.4,2.72078]
[1733284281479,0.8142,3675.9,3675.4,2.72077]
[1733284282348,0.8142,3675.9,3675.5,2.72071]
[1733284282577,0.8142,3675.9,3675.6,2.72063]
[1733284283173,0.8142,3675.9,3675.7,2.72056]
[1733284283388,0.8142,3675.9,3675.6,2.72064]
[1733284283677,0.8142,3675.9,3675.5,0.288971]
[1733284283858,0.8044,3676.4,3675.6,2.72064]
[1733284284058,0.8044,3676.4,3675.5,0.288971]
[1733284284257,0.8044,3676.4,3675.7,2.72056]
[1733284285685,0.8089,3676.2,3675.2,0.169]
[1733284285858,0.03400529,3676.1,3675.2,0.169]
[1733284286051,0.03400529,3676.1,3675.3,0.35104968]
[1733284287356,0.03400529,3676.1,3675.6,2.72063]
[1733284287755,0.8089,3676.2,3675.6,2.72063]
[1733284287987,0.0340053,3676.1,3675.6,2.72063]
[1733284288350,0.7857,3676.0,3675.6,2.72063]
[1733284288886,0.7663,3675.8,3675.0,0.30131529]
[1733284289071,0.7663,3675.6,3675.0,0.30131529]
[1733284289327,0.7639,3675.4,3675.0,0.02941529]
[1733284291644,0.7639,3675.4,3675.0,0.30447182]
[1733284291801,0.7509,3676.0,3675.3,2.72086]
[1733284292006,0.25462126,3675.9,3675.6,2.72064]
[1733284292226,0.25462126,3675.8,3675.6,2.72064]
[1733284292453,0.7509,3676.0,3675.7,2.72052]
[1733284292770,0.7509,3676.0,3675.8,2.72046]
[1733284292987,0.7509,3676.0,3675.9,2.72042]
[1733284293451,0.2843685,3676.6,3675.9,2.72042]
[1733284293452,0.7527,3676.5,3675.9,2.72042]
[1733284293651,0.25466929,3676.4,3675.9,2.72042]
[1733284293958,0.25466929,3676.3,3675.9,2.72042]
[1733284294147,0.7527,3676.5,3675.9,2.72042]
[1733284294352,0.25467385,3676.4,3675.9,2.72042]
[1733284294564,0.25467385,3676.3,3675.9,2.72042]
[1733284294789,0.25467385,3676.2,3675.9,2.72042]
[1733284294981,0.7527,3676.5,3676.0,2.72027]
[1733284295150,0.2547233,3676.4,3675.9,0.272042]
[1733284295487,0.7527,3676.5,3675.9,2.992432]
[1733284295680,0.7527,3676.5,3675.9,0.272042]
[1733284295981,0.25474501,3676.4,3676.0,2.72034]
[1733284296185,0.25474501,3676.3,3676.0,2.72034]
[1733284296389,0.7527,3676.5,3676.0,2.72034]
[1733284296594,0.25474175,3676.4,3676.0,2.72034]
[1733284296889,0.25474175,3676.3,3675.8,2.99237]
[1733284297079,0.7527,3676.5,3675.8,2.99237]
[1733284297378,0.25474272,3676.4,3675.8,2.99237]
[1733284297686,0.7527,3676.5,3675.8,2.99237]
[1733284297687,0.25474272,3676.3,3675.8,2.99237]
[1733284297894,0.7527,3676.5,3675.8,2.99237]
[1733284298083,0.2547435,3676.4,3675.8,2.99237]
[1733284298277,0.2547435,3676.3,3675.8,2.99237]
[1733284298587,0.7527,3676.5,3675.8,2.99237]
[1733284299217,0.25473834,3676.4,3675.8,2.99237]
[1733284299358,0.25473834,3676.3,3675.8,0.588037]
[1733284299560,0.7527,3676.5,3675.9,2.72041]
[1733284299757,0.25473023,3676.4,3675.9,2.72041]
[1733284299989,0.25473023,3676.3,3675.9,2.72041]
[1733284300192,0.7527,3676.5,3675.9,2.72041]
[1733284300394,0.25472569,3676.4,3675.9,2.72041]
[1733284300604,0.25472569,3676.3,3676.0,0.2719]
[1733284300813,0.7527,3676.5,3676.0,0.2719]
[1733284300973,0.25472232,3676.4,3676.0,0.2719]
[1733284301175,0.7527,3676.5,3676.0,0.2719]
[1733284301507,0.7527,3676.5,3676.1,2.72026]
[1733284301912,0.7527,3676.5,3676.1,3.0493991]
[1733284302408,0.7527,3676.5,3675.8,0.2719]
[1733284302573,0.28870054,3676.4,3675.8,0.2719]
[1733284302892,0.25470695,3676.3,3675.8,0.2719]
[1733284303088,0.7828,3676.3,3675.4,2.99262]
[1733284303298,0.7828,3676.3,3675.5,2.9926]
[1733284303661,0.7828,3676.3,3675.6,2.72062]
[1733284304782,0.03400312,3676.2,3675.6,2.99252]
[1733284304984,0.7828,3676.3,3675.6,0.2719]
[1733284305179,0.03400552,3676.2,3675.6,0.2719]
[1733284305358,0.7702,3676.1,3675.6,0.2719]
[1733284306552,0.7702,3676.1,3675.6,2.99253]
[1733284307489,0.7702,3676.1,3675.4,0.2719]
[1733284307793,0.7702,3676.1,3675.6,0.2719]
[1733284309274,0.7702,3676.1,3675.2,0.2719]
[1733284309468,0.03400555,3676.0,3675.5,0.2719]
[1733284310375,0.7702,3676.1,3675.3,0.2719]
[1733284310575,0.7702,3676.1,3675.3,2.99276]
[1733284311081,0.25474134,3676.0,3675.3,2.99276]
[1733284311289,0.7702,3676.1,3675.3,2.99276]
[1733284311497,0.25474434,3676.0,3675.3,2.99276]
[1733284311686,0.7702,3676.1,3675.3,2.99276]
[1733284311882,0.25473423,3676.0,3675.3,2.99276]
[1733284312073,0.7702,3676.1,3675.5,0.2719]
[1733284312297,0.25473061,3676.0,3675.6,2.99252]
[1733284312504,0.7702,3676.1,3675.6,0.2719]
[1733284313221,0.7702,3676.1,3675.6,2.99247]
[1733284313398,0.7702,3676.1,3675.7,3.291667]
[1733284313604,0.7702,3676.1,3675.8,2.72048]
[1733284314621,0.8295,3676.4,3675.9,2.72041]
[1733284314909,0.8295,3676.8,3676.1,2.72025]
[1733284315095,0.66220768,3676.7,3676.1,2.72025]
[1733284315295,0.2546956,3676.6,3676.1,2.72025]
[1733284315526,0.2546956,3676.5,3676.1,2.992275]
[1733284315821,0.8295,3676.8,3676.1,2.992275]
[1733284316029,0.25468639,3676.7,3676.1,2.992275]
[1733284316200,0.25468639,3676.6,3676.1,2.992275]
[1733284316532,0.25468639,3676.5,3676.1,2.992275]
[1733284316689,0.03399939,3676.7,3676.1,0.272025]
[1733284316886,0.7553,3676.5,3675.7,2.99246]
[1733284317225,0.7553,3676.3,3675.7,2.99246]
[1733284317992,0.7553,3676.3,3675.8,2.72049]
[1733284319313,0.7553,3676.3,3675.7,0.2719]
[1733284320026,0.7553,3676.3,3675.7,2.99246]
[1733284320687,0.2547848,3676.2,3675.7,2.99246]
[1733284320889,0.7553,3676.3,3675.4,0.2719]
[1733284321090,0.7553,3676.3,3675.7,0.2719]
[1733284321333,0.25478364,3676.2,3675.7,0.2719]
[1733284321524,0.7553,3676.3,3675.7,0.2719]
[1733284321718,0.25489748,3676.2,3675.7,2.99246]
[1733284321887,0.7553,3676.3,3675.7,0.2719]
[1733284322091,0.7553,3676.3,3675.7,2.72055]
[1733284322338,0.25489351,3676.2,3675.8,2.72047]
[1733284322516,0.7553,3676.3,3675.8,2.72047]
[1733284322826,0.25496101,3676.2,3675.8,2.72047]
[1733284323027,0.7553,3676.3,3675.8,2.72047]
[1733284323239,0.25496332,3676.2,3675.8,2.72047]
[1733284323432,0.7553,3676.3,3675.8,2.72047]
[1733284323740,0.25496093,3676.2,3675.8,2.72047]
[1733284323889,0.7553,3676.3,3675.8,2.72047]
[1733284324095,0.25496478,3676.2,3675.8,2.72047]
[1733284324294,0.7553,3676.3,3675.9,2.72039]
[1733284324490,0.25496749,3676.2,3675.9,2.72039]
[1733284324736,0.7553,3676.3,3675.9,2.72039]
[1733284326310,0.25496663,3676.2,3675.9,2.72039]
[1733284326522,0.7553,3676.3,3675.7,2.72056]
[1733284326721,0.25496505,3676.2,3675.7,2.72056]
[1733284326907,0.7553,3676.3,3675.7,2.72056]
[1733284326908,0.7553,3676.3,3675.8,0.34259397]
[1733284327097,0.2549667,3676.2,3675.6,0.2719]
[1733284327303,0.7553,3676.3,3675.8,2.72048]
[1733284327636,0.25496316,3676.2,3675.6,0.2719]
[1733284327832,0.7553,3676.3,3675.6,0.2719]
[1733284328129,0.25496735,3676.2,3675.6,2.99248]
[1733284328352,0.25496735,3676.1,3675.6,3.308628]
[1733284328531,0.7835,3676.0,3675.6,3.308628]
[1733284328901,0.7835,3676.0,3675.6,2.99248]
[1733284329124,0.7835,3676.0,3675.6,0.2719]
[1733284329335,0.03400341,3675.9,3675.6,0.2719]
[1733284329616,0.8294,3675.8,3675.2,2.99281]
[1733284330595,0.8294,3675.8,3675.1,0.2719]
[1733284330835,0.8294,3675.8,3675.3,2.72085]
[1733284331712,0.8294,3675.8,3675.3,0.32678065]
[1733284332040,0.8294,3675.8,3675.4,2.72077]
[1733284334972,0.8294,3675.8,3675.1,0.2719]
[1733284335135,0.7622,3676.7,3675.3,1.17301667]
[1733284335468,0.7622,3676.5,3675.3,1.44491667]
[1733284335675,0.8059,3676.3,3675.6,2.72063]
[1733284335866,0.25490406,3676.2,3675.6,2.72063]
[1733284336069,0.25490406,3676.1,3675.6,2.72063]
[1733284336275,0.8059,3676.3,3675.7,2.72056]
[1733284336574,0.25490101,3676.2,3675.7,2.72056]
[1733284336742,0.25490101,3676.1,3675.7,2.72056]
[1733284336943,0.8059,3676.3,3675.7,2.72056]
[1733284337147,0.25490327,3676.2,3675.7,2.72056]
[1733284337368,0.25490327,3676.1,3675.7,3.06315457]
[1733284337538,0.8059,3676.3,3675.7,0.34259457]
[1733284337739,0.25489367,3676.2,3675.5,0.2719]
[1733284337982,0.8059,3676.3,3675.5,0.2719]
[1733284338132,0.25489185,3676.2,3675.7,2.72051]
[1733284338455,0.8059,3676.3,3675.8,2.72048]
[1733284338660,0.25489007,3676.2,3675.8,2.72048]
[1733284338859,0.8059,3676.3,3675.8,3.019718]
[1733284339544,0.25488627,3676.2,3675.8,3.019718]
[1733284339737,0.8059,3676.3,3675.8,3.019718]
[1733284340652,0.25488565,3676.2,3675.9,0.2719]
[1733284340858,0.8059,3676.3,3675.8,2.72048]
[1733284341157,0.25488702,3676.2,3675.8,2.72048]
[1733284341361,0.8289,3676.1,3675.5,2.99255]
[1733284341556,0.8289,3676.1,3675.6,2.72063]
[1733284343685,0.8289,3676.1,3675.5,0.97744467]
[1733284343978,0.8289,3676.1,3675.3,2.72081]
[1733284344142,0.7778,3675.9,3675.3,2.72081]
[1733284345740,0.254916,3675.4,3674.8,3.581408]
[1733284345939,0.7614,3675.5,3674.9,2.72115]
[1733284346158,0.2549282,3675.4,3674.9,2.72115]
[1733284346357,0.7614,3675.5,3674.9,2.72115]
[1733284346580,0.25488249,3675.4,3674.9,2.72115]
[1733284346741,0.7614,3675.5,3674.9,2.72115]
[1733284346937,0.25488248,3675.4,3674.9,2.72115]
[1733284347181,0.7614,3675.5,3674.9,2.72115]
[1733284347478,0.25484455,3675.4,3674.9,2.72115]
[1733284347684,0.25484455,3675.3,3674.9,2.72115]
[1733284347980,0.7614,3675.5,3674.9,3.020455]
[1733284348143,0.25484707,3675.4,3674.9,2.72115]
[1733284348347,0.7614,3675.5,3674.9,2.72115]
[1733284348574,0.25480914,3675.4,3674.9,2.72115]
[1733284348783,0.7614,3675.5,3674.9,2.72115]
[1733284348977,0.25480942,3675.4,3674.9,2.72115]
[1733284349144,0.7614,3675.5,3674.9,3.020455]
[1733284349357,0.25477698,3675.4,3674.7,0.2719]
[1733284349678,1.05397894,3675.3,3674.7,0.2719]
[1733284349857,0.7992,3675.3,3674.8,2.72123]
[1733284350263,0.25479674,3675.2,3674.5,2.72141]
[1733284350594,0.7992,3675.3,3674.5,2.72141]
[1733284350795,0.7992,3675.3,3674.6,3.11359339]
[1733284350966,0.25473908,3675.2,3674.6,3.11359339]
[1733284351168,0.7992,3675.3,3674.7,2.7213]
[1733284351979,0.03401433,3675.2,3674.7,2.7213]
[1733284352199,0.03401433,3675.2,3674.6,0.39222339]
[1733284352200,0.7992,3675.3,3674.6,0.39222339]
[1733284352395,0.03401433,3675.2,3674.6,0.39222339]
[1733284352601,0.03401433,3675.2,3674.5,2.72145]
[1733284352602,0.8232,3675.1,3674.5,2.72145]
[1733284352757,0.8232,3675.1,3674.6,2.72137]
[1733284355301,0.8232,3675.1,3674.4,0.0278072]
[1733284355463,0.25458936,3675.0,3674.4,0.0278072]
[1733284355667,1.07591816,3674.9,3674.4,0.0278072]
[1733284355896,0.7873,3674.7,3674.4,0.0278072]
[1733284356200,0.03401931,3674.6,3674.4,0.0278072]
[1733284358504,0.7873,3674.7,3674.4,0.0278072]
[1733284358939,0.03401879,3674.6,3674.4,0.0278072]
[1733284359440,0.7575,3674.5,3674.4,0.0278072]
[1733284362027,0.7575,3674.5,3673.5,0.4409]
[1733284362204,0.7575,3674.5,3673.7,2.72203]
[1733284362603,0.7524,3674.3,3673.5,2.72219]
[1733284362947,0.7524,3674.1,3673.6,2.72209]
[1733284363444,0.7524,3673.7,3673.1,0.2719]
[1733284363654,0.7709,3673.5,3673.1,2.72249]
[1733284363806,0.7709,3673.5,3672.8,2.72266]
[1733284364302,0.03402847,3673.4,3672.7,0.2719]
[1733284364545,0.7709,3673.3,3672.7,2.72276]
[1733284364790,1.17301667,3673.8,3672.4,0.02304442]
[1733284364791,0.8293,3673.0,3672.4,0.02304442]
[1733284365089,0.8293,3672.8,3672.4,0.02304442]
[1733284365439,0.03403882,3672.7,3672.4,0.02304442]
[1733284365743,0.7986,3672.6,3671.9,2.72337]
[1733284365943,0.03404012,3672.5,3671.9,2.72337]
[1733284366193,0.03404012,3672.5,3671.4,0.169]
[1733284366491,0.7986,3672.4,3671.6,2.72354]
[1733284367372,0.03404225,3672.3,3671.6,2.72354]
[1733284367551,0.03404225,3672.3,3671.4,0.40657967]
[1733284367552,0.03404225,3672.3,3671.7,2.72353]
[1733284367746,0.7986,3672.4,3671.4,0.40657967]
[1733284367953,0.7986,3672.4,3672.0,2.72329]
[1733284368159,0.7986,3672.4,3671.5,2.72368]
[1733284368365,0.7986,3672.4,3671.6,0.31302597]
[1733284368555,0.7986,3672.4,3671.9,2.72335]
[1733284368897,0.7986,3672.4,3671.6,0.31302597]
[1733284369401,0.7986,3672.4,3672.0,2.7233]
[1733284369597,0.7986,3672.4,3672.1,2.72321]
[1733284371189,0.7986,3672.4,3672.2,2.72315]
[1733284371398,0.7986,3672.4,3671.9,2.72331]
[1733284371709,0.7986,3672.4,3671.2,2.72388]
[1733284371710,0.03404111,3672.3,3671.2,2.72388]
[1733284371878,0.7986,3672.4,3671.3,0.289288]
[1733284372067,0.7986,3672.4,3672.1,2.72322]
[1733284372785,0.7986,3672.4,3672.2,2.72315]
[1733284373860,0.7986,3672.4,3672.3,2.72308]
[1733284376784,0.7796,3672.8,3671.9,2.72338]
[1733284376993,0.7796,3673.5,3672.7,2.72276]
[1733284377197,0.03403285,3673.4,3672.8,2.72267]
[1733284377399,0.8167,3673.3,3672.8,2.72267]
[1733284377601,0.03403455,3673.2,3672.8,2.72267]
[1733284378608,0.8167,3673.3,3672.8,2.72267]
[1733284379393,0.03403454,3673.2,3672.8,2.72267]
[1733284379987,0.8167,3673.3,3672.8,2.72267]
[1733284380214,0.03403454,3673.2,3672.8,2.72267]
[1733284381699,0.03403454,3673.2,3672.6,2.72286]
[1733284381878,0.03403454,3673.2,3672.3,2.72302]
[1733284382291,0.03403454,3673.2,3672.6,2.7228]
[1733284382477,0.25319721,3673.1,3672.6,2.7228]
[1733284382682,0.03403513,3673.0,3672.6,2.7228]
[1733284382885,11.34551438,3673.8,3671.3,0.289288]
[1733284382886,0.8003,3673.1,3671.3,0.289288]
[1733284383209,0.8003,3673.1,3671.6,2.72359]
[1733284383210,0.8003,3672.7,3671.6,2.72359]
[1733284383416,0.7737,3672.5,3671.6,2.72359]
[1733284383625,0.7737,3672.3,3671.7,2.72349]
[1733284383932,0.25320501,3672.2,3671.7,2.7235]
[1733284384113,0.25320501,3672.1,3671.1,0.169]
[1733284384314,0.7737,3672.3,3671.9,2.72338]
[1733284384524,0.25340207,3672.2,3671.9,2.72338]
[1733284384826,1.06184349,3672.3,3671.9,2.72338]
[1733284385029,0.25340417,3672.2,3671.7,2.72353]
[1733284385190,0.25340417,3672.1,3671.7,2.72353]
[1733284385390,0.7737,3672.3,3671.1,0.169]
[1733284385593,0.28754969,3672.2,3671.3,2.72383]
[1733284385816,0.25350593,3672.1,3671.3,2.72383]
[1733284386007,0.28754892,3672.0,3671.7,2.72353]
[1733284386205,0.03404299,3672.0,3671.7,2.72353]
[1733284386524,0.25355116,3671.9,3671.5,2.72367]
[1733284386694,0.03404299,3672.2,3671.6,2.7236]
[1733284386893,0.25355685,3672.1,3671.6,2.7236]
[1733284387089,0.28760111,3672.0,3671.6,2.7236]
[1733284387505,0.25355685,3671.9,3671.6,2.7236]
[1733284387697,0.25355685,3671.8,3671.6,2.7236]
[1733284387898,0.40579066,3672.1,3671.6,2.7236]
[1733284388238,0.28766258,3672.0,3671.6,2.7236]
[1733284388394,0.25361859,3671.9,3671.6,2.7236]
[1733284388597,0.8323,3671.7,3671.6,2.7236]
[1733284389310,1.08612966,3671.7,3671.6,2.7236]
[1733284389636,0.8323,3671.7,3671.6,2.7236]
[1733284390001,1.08612842,3671.7,3671.6,2.7236]
[1733284391236,1.08612842,3671.7,3671.0,2.72403]
[1733284391399,0.25382842,3671.6,3671.5,2.72368]
[1733284392598,0.66084146,3671.6,3671.5,2.72368]
[1733284392931,0.25382842,3671.6,3671.5,2.72368]
[1733284393295,0.66118605,3671.6,3671.5,2.72368]
[1733284393919,0.66118605,3671.6,3671.0,0.32451369]
[1733284394126,0.66118605,3671.5,3671.4,2.72375]
[1733284394693,0.25382842,3671.5,3671.4,2.72375]
[1733284395438,0.25382842,3671.5,3671.4,3.165125]
[1733284395607,0.25382842,3671.5,3671.4,4.34071841]
[1733284397615,0.42168306,3672.4,3672.1,2.72323]
[1733284397616,0.8308,3672.4,3672.1,2.72323]
[1733284397937,0.8308,3672.4,3671.5,5.44736]
[1733284397938,0.66205402,3672.3,3671.5,5.44736]
[1733284398136,0.25463616,3672.2,3672.0,2.72325]
[1733284398440,0.25463616,3672.1,3672.0,2.72325]
[1733284399308,0.25463616,3672.1,3671.7,2.72351]
[1733284399502,0.7786,3671.9,3671.7,2.72351]
[1733284401398,0.8091,3672.7,3671.7,2.72351]
[1733284401601,1.31321723,3672.6,3671.8,2.72344]
[1733284401807,0.6620919,3672.5,3671.8,2.72344]
[1733284402011,0.8091,3672.3,3671.8,2.72344]
[1733284402215,0.25465073,3672.2,3671.8,2.72344]
[1733284402516,0.28869315,3672.1,3671.8,2.72344]
[1733284402711,0.25465073,3672.0,3671.8,2.72344]
[1733284402911,0.8091,3672.3,3671.8,2.72344]
[1733284403143,0.28869025,3672.2,3671.8,2.72344]
[1733284403339,0.25464783,3672.1,3671.9,2.72336]
[1733284403645,0.03404235,3672.2,3671.9,2.72336]
[1733284403818,0.25465189,3672.1,3671.9,2.72336]
[1733284404002,0.03404235,3672.2,3671.9,2.72336]
[1733284404205,0.25464749,3672.1,3671.9,2.72336]
[1733284404427,0.8091,3672.3,3671.9,2.72336]
[1733284404742,0.25466033,3672.2,3671.9,2.72336]
[1733284404947,0.25466033,3672.1,3671.9,2.72336]
[1733284405140,0.8091,3672.3,3671.9,2.72336]
[1733284405360,0.2546559,3672.2,3671.9,2.72336]
[1733284405502,0.8091,3672.3,3671.9,2.72336]
[1733284405702,0.25467017,3672.2,3671.9,2.72336]
[1733284405908,0.8091,3672.3,3671.9,2.72336]
[1733284406751,0.8091,3672.3,3672.0,2.7233]
[1733284407737,0.7873,3673.0,3672.1,2.72322]
[1733284407940,1.00495134,3672.9,3672.1,2.72322]
[1733284408123,1.44961249,3672.8,3672.1,2.72322]
[1733284408319,0.66231249,3672.7,3672.1,2.72322]
[1733284408525,0.66231249,3672.6,3672.1,2.72322]
[1733284408825,2.63908731,3673.2,3672.1,2.72318]
[1733284408826,0.25473535,3672.5,3672.1,2.72318]
[1733284409038,0.8249,3673.1,3672.2,3.04636459]
[1733284409242,0.8249,3673.1,3672.7,2.72278]
[1733284409484,0.25476269,3673.0,3672.2,0.169]
[1733284409652,0.8249,3673.1,3672.8,2.72271]
[1733284409950,0.2547634,3673.0,3671.4,2.60504659]
[1733284410150,0.8249,3672.8,3671.5,0.169]
[1733284410455,0.8249,3672.6,3671.5,0.169]